Cogmind - Beta 15 @@@ ROGUE MODE // 2025.05.18 @ 12:28:56 Player: Demo Result: Destroyed by 57-NNU(R) with Subdweller Machine Gun Performance ------------- Evolutions (0) 0 Regions Visited (3) 600 Robots Destroyed (14) 70 Value Destroyed (418) 418 Prototype IDs (0) 0 Alien Tech Used (0) 0 Bonus (0) 0 TOTAL SCORE: 1088 Bonus ------- None Cogmind --------- Core Integrity 0/250 Matter 81/300 Energy 36/100 System Corruption 0% Temperature Cool (0) Movement Core (50) Location -10/Subcaves Parts ------- > --- POWER (1) -------- (None) > --- PROPULSION (2) --- (None) > --- UTILITY (2) ------ Advanced Weight Redist. System > --- WEAPON (2) ------- Hammer > --- INVENTORY (5) ---- Rocket Launcher Subdweller Shrapnel Launcher Subdweller Shrapnel Launcher Missile Launcher Peak State ------------ > --- POWER ------------ Light Ion Engine > --- PROPULSION ------- Light Treads Light Treads > --- UTILITY ---------- Advanced Weight Redist. System High-powered Tractor Beam > --- WEAPON ----------- Field Laser High-powered Shotgun > --- INVENTORY -------- Nuclear Core Medium Matter Pod Rocket Launcher Missile Launcher Hammer [Rating: 16] Favorites ----------- Power Light Ion Engine Engine Light Ion Engine Power Core Nuclear Core Propulsion Light Treads Treads Light Treads Wheel Subdweller Monowheel Utility Advanced Weight Redist. System Device Advanced Weight Redist. System Weapon Field Laser Energy Gun Field Laser Ballistic Gun High-powered Shotgun Launcher Rocket Launcher Special Weapon Mining Laser Impact Weapon Hammer Build | -11 -10 -10 -10 ------- Run | Yrd Mat Min Sub Slots Evolved . | . . . . Power . | . . . . Propulsion . | . . . . Utility . | . . . . Weapon . | . . . . Parts Attached 14 | 2 2 6 4 Power 2 | . . 2 . Engine 1 | . . 1 . Core 1 | . . 1 . Reactor . | . . . . Propulsion 3 | 2 . . 1 Treads 2 | 2 . . . Leg . | . . . . Wheel 1 | . . . 1 Hover . | . . . . Flight . | . . . . Utility 2 | . . 2 . Device 2 | . . 2 . Storage . | . . . . Processor . | . . . . Hackware . | . . . . Protection . | . . . . Artifact . | . . . . Weapon 7 | . 2 2 3 Energy Gun 1 | . . 1 . Energy Cannon . | . . . . Ballistic Gun 1 | . . 1 . Ballistic Cannon . | . . . . Launcher 2 | . . . 2 Special Weapon 2 | . 2 . . Impact Weapon 1 | . . . 1 Slashing Weapon . | . . . . Piercing Weapon . | . . . . Special Melee Weapon . | . . . . Unidentified Prototypes . | . . . . Parts Lost 6 | . . . 6 Power 2 | . . . 2 Propulsion 3 | . . . 3 Utility 1 | . . . 1 Weapon . | . . . . Highest Loss Streak 5 | . . . 5 To Critical Strikes . | . . . . Average Backups 4 | . . 3 4 Power . | . . . . Propulsion . | . . . . Utility . | . . . . Weapon 2 | . . 2 3 Tool/Special . | . . . . Unused Backups 5 | . . 2 3 Power . | . . . . Propulsion . | . . . . Utility 2 | . . 1 1 Weapon 3 | . . 1 2 Tool/Special . | . . . . Average Slot Usage (%) 85 | . 28 83 91 Engine 9 | . . 6 12 Core 1 | . . 3 . Treads 22 | . 28 28 19 Wheel 2 | . . . 4 Device 22 | . . 18 27 Energy Gun 9 | . . 9 10 Ballistic Gun 2 | . . 6 1 Launcher 6 | . . . 10 Special Weapon 3 | . . 10 . Impact Weapon 3 | . . . 5 Peak Build Rating 16 | 2 4 16 16 Average Rating 12 | 1 2 11 13 On Entrance 5 | . 2 4 16 Naked Turns . | . . . . Heaviest Build 11 | . 2 11 11 Greatest Support 12 | 3 3 12 12 Greatest Overweight (x) . | . . . . Average Overweight (x) . | . . . . Largest Inventory Capacity 5 | 5 5 5 5 Average Capacity 5 | 5 5 5 5 Most Carried 5 | . 1 5 5 Average Carried 4 | . . 4 4 Final Capacity 5 | 5 5 5 5 Final Carried 5 | . 1 5 4 Class Distribution -------------------- 100% | Mutant Dominant Class ---------------- Mutant | -10/Materials Mutant | -10/Mines Mutant | -10/Subcaves Resources | -11 -10 -10 -10 ----------- Run | Yrd Mat Min Sub Matter Collected 601 | 32 . 342 227 Remotely 352 | . . 199 153 Salvage Created 379 | . . 199 180 Parts 34 | . . 15 19 Haulers Intercepted . | . . . . Recyclers Shooed . | . . . . Parts Field Recycled . | . . . . Retrieved Matter . | . . . . Parts Self-Destructed 4 | . . . 4 Prevented . | . . . . Kills | -11 -10 -10 -10 ------- Run | Yrd Mat Min Sub Combat Hostiles Destroyed 10 | . . . 10 AOE 10 | . . . 10 Classes Destroyed 4 | . . 3 1 Worker 1 | . . 1 . Builder 1 | . . 1 . Recycler 2 | . . 2 . Subdweller 10 | . . . 10 Best Kill Streak 4 | . . 4 4 Combat Bots Only 4 | . . . 4 Max Kills in Single Turn 2 | . . 1 2 Gunslinging . | . . . . Exploded 2 | . . . 2 Melee . | . . . . Uniques/NPCs Destroyed . | . . . . Combat | -11 -10 -10 -10 -------- Run | Yrd Mat Min Sub Hostile Shots Fired 61 | . . 17 44 Missed 20 | . . 8 12 Hits 41 | . . 9 32 Projectile 41 | . . 9 32 AOE 1 | . . . 1 Critical Strikes 1 | . . . 1 Damage Taken 915 | . . 106 809 Core 255 | . . 22 233 Absorbed by Shields . | . . . . Core Remaining (%) 100 | 100 . . . Volleys Fired 40 | . . 12 28 Largest 2 | . . 1 2 Hottest 96 | . . 63 96 Shots Fired 51 | . . 12 39 Gun 19 | . . 12 7 Cannon . | . . . . Launcher 32 | . . . 32 Special . | . . . . Kinetic 4 | . . . 4 Thermal 19 | . . 12 7 Explosive 28 | . . . 28 Electromagnetic . | . . . . Robot Hit Streak 6 | . . 4 6 Robot Miss Streak 2 | . . 2 1 Penetration Max . | . . . . Secondary Targets . | . . . . Shots Hit Robots 29 | . . 8 21 Core Hits 20 | . . 4 16 Critical Kills . | . . . . Critical Parts Destroyed . | . . . . Critical Strikes 1 | . . 1 . Burn 1 | . . 1 . Melee Attacks 7 | . . . 7 Impact 7 | . . . 7 Slashing . | . . . . Piercing . | . . . . Sneak Attacks . | . . . . Combat Hostiles . | . . . . Follow-up Attacks . | . . . . Damage Inflicted 1855 | . . 138 1717 Guns 190 | . . 138 52 Cannons . | . . . . Explosions 1664 | . . . 1664 Melee . | . . . . Ramming 1 | . . . 1 Kinetic 241 | . . . 241 Thermal 190 | . . 138 52 Explosive 1423 | . . . 1423 Electromagnetic . | . . . . Impact . | . . . . Slashing . | . . . . Piercing . | . . . . Highest Corruption . | . . . . Average Corruption . | . . . . Corruption Purged . | . . . . Corruption Blocked . | . . . . Overload Shots . | . . . . Overflow Damage . | . . . . Projectiles . | . . . . Explosions . | . . . . Melee . | . . . . Knockbacks . | . . . . Impact . | . . . . Kinetic . | . . . . Secondary . | . . . . Self-Inflicted Damage 19 | . . . 19 Shots 1 | . . . 1 Rammed 1 | . . . 1 Targets Rammed 1 | . . . 1 Kicked . | . . . . Crushed . | . . . . Highest Temperature 182 | . . 182 14 Average Temperature 66 | . . 69 10 Received Heat Transfer 99 | . . 15 84 Siege Activations . | . . . . Martial Activations . | . . . . Shielding Activations . | . . . . Robots Disrupted . | . . . . Combat Hostiles . | . . . . Robots Corrupted . | . . . . Combat Hostiles . | . . . . Parts Fried . | . . . . Impact Corruptions . | . . . . Robots Melted . | . . . . Combat Hostiles . | . . . . Parts Melted 1 | . . 1 . Heat Transferred 481 | . . 370 111 Parts Sabotaged . | . . . . Parts Stolen . | . . . . Parts Stripped . | . . . . Power Chain Reactions . | . . . . Alert | -11 -10 -10 -10 ------- Run | Yrd Mat Min Sub Maximum Alert Level . | . . . . Low Security (%) 100 | 100 100 100 . Level 1 . | . . . . Level 2 . | . . . . Level 3 . | . . . . Level 4 . | . . . . Level 5 . | . . . . High Security . | . . . . Max Security . | . . . . Peak Influence 65 | . . 65 . Initial . | . . . . Average 22 | . . 27 . Influence Increases 95 | . . 95 . Destroy 0b10 Robot/NC 20 | . . 20 . Lose Combat Pursuer 75 | . . 75 . Influence Decreases 95 | . . 95 . Time Decay 95 | . . 95 . Squads Dispatched . | . . . . Investigation . | . . . . Extermination . | . . . . Reinforcement . | . . . . Assault . | . . . . Garrison . | . . . . Intercept . | . . . . Searches Triggered . | . . . . Construction Impeded . | . . . . Haulers Reinforced . | . . . . Active Scanning Responses . | . . . . Cargo Convoy Interrupts . | . . . . Stealth | -11 -10 -10 -10 --------- Run | Yrd Mat Min Sub Distress Signals . | . . . . Communications Jammed . | . . . . Distress Signals . | . . . . Times Spotted 20 | . . 5 15 Peak Tracking Total 5 | . . 5 4 Tactical Retreats 4 | . . 2 2 Traps | -11 -10 -10 -10 ------- Run | Yrd Mat Min Sub Traps Triggered 3 | . . 1 2 Indirectly . | . . . . Trap Hack Attempts . | . . . . Triggered . | . . . . Disarmed . | . . . . Reprogrammed . | . . . . Reused . | . . . . Traps Extracted . | . . . . Installed . | . . . . Triggered . | . . . . Machines | -11 -10 -10 -10 ---------- Run | Yrd Mat Min Sub Machines Disabled . | . . . . Max in Single Turn . | . . . . Machines Repaired . | . . . . Machines Dismantled . | . . . . Machines Sabotaged . | . . . . Overloaded Fab Kills . | . . . . Hacking | -11 -10 -10 -10 --------- Run | Yrd Mat Min Sub Machines Accessed 1 | . . 1 . Terminals . | . . . . Fabricators . | . . . . Repair Stations . | . . . . Recycling Units . | . . . . Scanalyzers . | . . . . Garrison Access . | . . . . Total Hacks 1 | . . 1 . Successful 1 | . . 1 . Failed . | . . . . Catastrophic . | . . . . Database Lockouts . | . . . . Manual . | . . . . Terminals . | . . . . Fabricators . | . . . . Repair Stations . | . . . . Recycling Units . | . . . . Scanalyzers . | . . . . Garrison Access . | . . . . Terminal Hacks 1 | . . 1 . Open Door 1 | . . 1 . Fabricator Hacks . | . . . . Repair Station Hacks . | . . . . Recycling Unit Hacks . | . . . . Scanalyzer . | . . . . Garrison Access Hacks . | . . . . Unauthorized Hacks . | . . . . Terminals . | . . . . Fabricators . | . . . . Repair Stations . | . . . . Recycling Units . | . . . . Scanalyzers . | . . . . Garrison Access . | . . . . Data Cores Recovered . | . . . . Used . | . . . . Hacking Detections . | . . . . Full Trace Events . | . . . . Feedback Events . | . . . . Feedback Blocked . | . . . . Robot Schematics Acquired . | . . . . Robots Built . | . . . . Authchips . | . . . . Time . | . . . . Total Robot Build Rating . | . . . . Part Schematics Acquired . | . . . . Parts Built . | . . . . Authchips . | . . . . Time . | . . . . Total Part Build Rating . | . . . . Parts Repaired . | . . . . Time . | . . . . Parts Recycled . | . . . . Recycled Matter . | . . . . Retrieved Matter . | . . . . Retrieved Components . | . . . . Parts Scanalyzed . | . . . . Part Schematics Acquired . | . . . . Parts Damaged . | . . . . Bothacking | -11 -10 -10 -10 ------------ Run | Yrd Mat Min Sub Used RIF Installer . | . . . . Robots Hacked . | . . . . Non-combat . | . . . . Combat . | . . . . Robot Hacks Applied . | . . . . Relay Couplers Released . | . . . . Fabnet Peak Effective % . | . . . . Robots Rewired . | . . . . Allies Hacked . | . . . . Hacks Repelled . | . . . . Allies | -11 -10 -10 -10 -------- Run | Yrd Mat Min Sub Total Allies . | . . . . Largest Group . | . . . . Highest-Rated Group . | . . . . Highest-Rated Ally . | . . . . Total Orders . | . . . . Ally Attacks . | . . . . Total Damage . | . . . . Kills . | . . . . Allies Corrupted . | . . . . Allies Melted . | . . . . Intel | -11 -10 -10 -10 ------- Run | Yrd Mat Min Sub Active Infowar (turns) . | . . . . Robot Analysis Total . | . . . . Derelict Logs Recovered 1 | . . 1 . Drone Launches . | . . . . Drone Recoveries . | . . . . Exploration | -11 -10 -10 -10 ------------- Run | Yrd Mat Min Sub Turns Passed 681 | 17 31 223 410 Spaces Moved 852 | 28 54 283 487 Core 852 | 28 54 283 487 Treads . | . . . . Legs . | . . . . Wheels . | . . . . Hover . | . . . . Flight . | . . . . Fastest Speed 50 | 50 50 50 50 Average Speed 50 | 50 50 50 50 Slowest Speed 50 | 50 50 50 50 Overloaded Moves . | . . . . Propulsion Burnouts . | . . . . Robots Hopped . | . . . . Potential Cave-ins . | . . . . Cave-ins Triggered . | . . . . Exploration Rate (%) 34 | 3 20 77 37 Regions Visited 3 Branch Regions 2 Pre-discovered Areas 1 | . . 1 . Known Exits Taken . | . . . . Unknown Exits Taken 3 | 1 1 1 . Scrap Searched 3 | . . 2 1 Spaces Dug 8 | . . . 8 Terrain Destroyed 242 | . . . 242 Melee . | . . . . Projectile . | . . . . AOE 242 | . . . 242 Terrain Rammed . | . . . . Walls Destroyed . | . . . . Machines Disabled . | . . . . Actions | -11 -10 -10 -10 --------- Run | Yrd Mat Min Sub Total 1038 | 29 56 352 601 Wait 100 | . . 38 62 Move 849 | 27 53 282 487 Hop . | . . . . Pick Up 11 | . 1 8 2 Fast Attach 9 | 2 2 4 1 Attach 4 | . . 2 2 Detach 3 | . . 1 2 Swap 6 | . . . 6 Drop 8 | . . 5 3 Fire 40 | . . 12 28 Melee 7 | . . . 7 Ram 1 | . . . 1 Kick . | . . . . Crush . | . . . . Escape Stasis . | . . . . Rewire . | . . . . Trap . | . . . . Miscellaneous . | . . . . Route ------- -11/Scrapyard -10/Materials -10/Mines (discovered 3 exits: [*Mat x2] / [*Sub]) -10/Subcaves (discovered 1 exit: [*Mat]) History --------- Turn | Location | Event 7 | -11/Scrapyard | Discovered new exit (range 16) 18 | -11/Scrapyard | Entered Materials 34 | -10/Materials | Discovered new exit (range 14) 49 | -10/Materials | Entered Mines 59 | -10/Mines | Discovered new exit (range 9) 103 | -10/Mines | Discovered new exit (range 15) 111 | -10/Mines | Met a Derelict who couldn't figure out how to use a Trap Extractor 235 | -10/Mines | Learned location of Zion (-7) 242 | -10/Mines | Received a Rocket Launcher from a helpful Derelict 271 | -10/Mines | Discovered new exit (range 3) 272 | -10/Mines | Entered Subcaves 311 | -10/Subcaves | Build established: Mutant 342 | -10/Subcaves | Shifting Twisted Machinery released Piercing Trap 362 | -10/Subcaves | Ambushed by Subdweller buried in earth 389 | -10/Subcaves | Shifting Twisted Machinery released Sub. Shrapnel Launcher 517 | -10/Subcaves | Shifting Twisted Machinery released Sub. Machine Gun 517 | -10/Subcaves | Discovered new exit (range 11) 521 | -10/Subcaves | Shifting Twisted Machinery released Sub. Power Source 662 | -10/Subcaves | Core integrity fell below 50% 669 | -10/Subcaves | Core integrity fell below 20% 682 | -10/Subcaves | Destroyed by 57-NNU(R) with Subdweller Machine Gun Last Messages --------------- 00634_ Found Piercing Trap. 00634_ Found Sub. Monowheel. 00634_ Found 39 Matter. 00635_ Acquired 39 matter. 00648_ KW-M73(R): "ARGHSUB!" 00648_ Lgt. Ion Engine destroyed. 00650_ Destroyed Scrap Shield. 00650_ Lgt. Treads destroyed. 00652_ The unstable cave ceiling collapses. 00654_ B0-W81(R) destroyed. 00654_ KW-M73(R) destroyed. 00654_ Hpw. Tractor Beam destroyed. 00655_ MD-ZLL(R): "ARGHSUB!" 00658_ BY-RBR(R): "ARGHSUB!" 00661_ The unstable cave ceiling collapses. 00661_ Dropped Field Laser. 00662_ The unstable cave ceiling collapses. 00663_ Sub. Monowheel destroyed. 00667_ Nuclear Core destroyed. 00670_ Slammed into 57-NNU(R). Map ----- +----------------------------------------------------+ | ##??? ##??? ""#???????????#???## #???? | | # #???? ???? <""????????????????# #???? | | ## #??? #??? """#??????????????## ##???? | | ?# ##??? #??? "????????????????# #????? | | ? #### #????????? #????????????????# #????? | | ##??## #????????? ##????????????????## ##???? | | #????? #??????????#??????????????????# ###?? | | #?????###???????????????????#######???# ##? | | # ???????????????????????????## ###?# ## | | ###???????????????????????????# #### | | ???????????????????????????#### # ### | | ???????????????????????????#"" ## | | ??????????????????????????##" ## | | ??????????????????????????#" ### ### | | ??????????????????????????#" & #?? | | ???????????????????????????#" [ ##?? | | ???????????????????????????#" #??? | | ???????????????????????????#"" #??? | | ???????????????????????????#### ###??? | | ?????????????????????????????# ### ### ####### | | ?????????????????????????????## #### ## # | | ?????????????????????????????# ##??# #? | | ?????????????????????????????# #???## # ##? | | ???????????####??????????????## ##???## #? | | ???####??## "????????######## #????## #? | | #### #?? "????????#"@ "#"# #????## ### ##? | | ## ### #???????### "" R #????# ##??##?? | | #??????# """" #????## ##?????? | | #?????# "" # # ##?????# #?????? | | ??????## "" ######?????## &###????? | | #??? #?????# ""#??????????# = #????? | | #?? ###???### "" ??????????# ####????? | | ## ##????### ??????????####???????? | | #??????# ? ?????????????????????? | | "?????? #? ?????????????????????? | | """??????????????????????????????????? | | # != ""??????????????????????????????????? | | ## & ????????????????????????????????? | | ?? * #????????????????????????????????? | | ??# ##????????????????????????????????? | | ??# ##?????????????????????????????????? | | ??# #??????????????????????????????????? | | ??## ????????????????????????????????? | | ???? ??????????????????????????????? | | ???? # ## ??????????????????????????????? | | ????? #### #? ??????????????????????????????? | | ?????# ??? ##??????????????????????????????????? | | ?????? ?????????????????????????????????????????? | | ??????# ????????????????????????????????????????? | | ?????????????????????????????????????????????????? | +----------------------------------------------------+ Best States ------------- Heat Dissipation 25 Energy Generation 14 Energy Capacity 240 Matter Stores 300 Matter Capacity 300 Sight Range 16 Terrain Scan Density 10 Additional Mass Support 9 Evasion (%) 50 Item Schematics ----------------- None Robot Schematics ------------------ None Fabricated ------------ Nothing Repaired ---------- Nothing Alien Tech Used ----------------- None Achievements -------------- None Challenges ------------ None Game ------ Seed SpreadMissileSegregator Manual? 0 Play Time 00:11:24 Cumulative 174.3 hours Start 2025.05.18 @ 12:18:39 End 2025.05.18 @ 12:28:56 Sessions 1 Manual Loads 0 Difficulty Rogue Special Mode None Game No. 199 Rogue 199 Adventurer 0 Explorer 0 Win Type - Total 1 Types 1/0/0/0/0/0/0/0/0/0 Lore% 69 Gallery% 69 Achievement% 61 Wizard Run 0 Options --------- Layout 1 ASCII 0 Keyboard 0 Movement Numpad Keybinds 0 Fullscreen 1 Font 24/Smallcaps Map View 50x35 Zoom Use 0% Tactical HUD 1 Map Filters NONE Filters NONE Steam 1 RUN: 1568ef1c-3916-4daf-adb7-6f2d6dc89df3